Workbook

Sheet SEMESTER
B1: MEIN KURSPLAN
B2: WINTERSEMESTER
C3: STARTZEIT | D3: ZEITINTERVALL | F3: JAHR
C4: 09:00:00 | D4: 60 | E4: (In Minuten)
B5: ZEIT | C5: MO | D5: DI | E5: MI | F5: DO | G5: FR | H5: SA | I5: SO
B6: =StartZeit+TIME(0,(ROW(A1)-1)*ZeitIntervall,0) -> 09:00:00 | C6: Frühstück | D6: Frühstück | E6: Frühstück | F6: Frühstück | G6: Frühstück
B7: 10:00:00 | C7: Wirtschaft: Vorlesung in Gebäude B, Raum 256
B8: 11:00:00 | F8: Physik: Praktische Übung Gebäude J, Raum 309
B9: 12:00:00
B10: 13:00:00
B11: 14:00:00
B12: 15:00:00
B13: 16:00:00
B14: 17:00:00
B15: 18:00:00
B16: 19:00:00
B17: 20:00:00
B18: 21:00:00
B19: 22:00:00
B20: 23:00:00
B21: 1
B22: 1.041666667
B23: 1.083333333
B24: 1.125
B25: 1.166666667
B26: 1.208333333
B27: 1.25
B28: 1.291666667
B29: 1.333333333

Sheet SCHEINE
B1: HOCHSCHULE
B2: KREDITPLANUNG
B3: ABSCHLUSS ALS | C3: =Jahr -> JAHR
B4: FORTSCHRITT GESAMT | D4: FORTSCHRITT GESAMT
B5: =AVERAGE(Kurse[PUNKTZAHL]) -> 3.5 | C5: =IFERROR(TEXT(AVERAGEIF(Kurse[ABGESCHLOSSEN],"Ja",Kurse[PUNKTZAHL]),"0.00"),"0.00")&" Aktueller Notendurchschnitt" -> 3.50 Aktueller Notendurchschnitt | D5: =COUNTIF(Kurse[ABGESCHLOSSEN],"Ja")/COUNTA(Kurse[KURSTITEL]) -> 0.6666666667 | E5: =TEXT(COUNTIF(Kurse[ABGESCHLOSSEN],"Ja")/COUNTA(Kurse[KURSTITEL]),"0%")&" abgeschlossen" -> 67% abgeschlossen
B6: Hinweis: Die folgende Aufstellung der erworbenen Scheine wird automatisch mithilfe der Einträge in Ihrer Hochschulkurs-Tabelle unten aufgefüllt
B7: ANFORDERUNG | C7: SCHEINE GESAMT | D7: ERHALTEN | E7: ERFORDERLICH
B8: Hauptfächer | C8: =IF(SUMIF(Kurse[GEFORDERT],SCHEINE!$B8,Kurse[SCHEINE])=0,"0",SUMIF(Kurse[GEFORDERT],SCHEINE!$B8,Kurse[SCHEINE])) -> 4 | D8: =SUMIFS(Kurse[SCHEINE],Kurse[GEFORDERT],SCHEINE!$B8,Kurse[ABGESCHLOSSEN],"Ja") -> 4 | E8: =SUMIF(Kurse[GEFORDERT],SCHEINE!$B8,Kurse[SCHEINE])-SUMIFS(Kurse[SCHEINE],Kurse[GEFORDERT],SCHEINE!$B8,Kurse[ABGESCHLOSSEN],"Ja") -> 0
B9: Nebenfächer | C9: =IF(SUMIF(Kurse[GEFORDERT],SCHEINE!$B9,Kurse[SCHEINE])=0,"0",SUMIF(Kurse[GEFORDERT],SCHEINE!$B9,Kurse[SCHEINE])) -> 3 | D9: =SUMIFS(Kurse[SCHEINE],Kurse[GEFORDERT],SCHEINE!$B9,Kurse[ABGESCHLOSSEN],"Ja") -> 0 | E9: =SUMIF(Kurse[GEFORDERT],SCHEINE!$B9,Kurse[SCHEINE])-SUMIFS(Kurse[SCHEINE],Kurse[GEFORDERT],SCHEINE!$B9,Kurse[ABGESCHLOSSEN],"Ja") -> 3
B10: Wahlfächer | C10: =IF(SUMIF(Kurse[GEFORDERT],SCHEINE!$B10,Kurse[SCHEINE])=0,"0",SUMIF(Kurse[GEFORDERT],SCHEINE!$B10,Kurse[SCHEINE])) -> 2 | D10: =SUMIFS(Kurse[SCHEINE],Kurse[GEFORDERT],SCHEINE!$B10,Kurse[ABGESCHLOSSEN],"Ja") -> 2 | E10: =SUMIF(Kurse[GEFORDERT],SCHEINE!$B10,Kurse[SCHEINE])-SUMIFS(Kurse[SCHEINE],Kurse[GEFORDERT],SCHEINE!$B10,Kurse[ABGESCHLOSSEN],"Ja") -> 0
B11: Studium generale | C11: =IF(SUMIF(Kurse[GEFORDERT],SCHEINE!$B11,Kurse[SCHEINE])=0,"0",SUMIF(Kurse[GEFORDERT],SCHEINE!$B11,Kurse[SCHEINE])) -> 0 | D11: =SUMIFS(Kurse[SCHEINE],Kurse[GEFORDERT],SCHEINE!$B11,Kurse[ABGESCHLOSSEN],"Ja") -> 0 | E11: =SUMIF(Kurse[GEFORDERT],SCHEINE!$B11,Kurse[SCHEINE])-SUMIFS(Kurse[SCHEINE],Kurse[GEFORDERT],SCHEINE!$B11,Kurse[ABGESCHLOSSEN],"Ja") -> 0
B12: Ergebnis | C12: =SUBTOTAL(109,SCHEINE!$C$8:$C$11) -> 9 | D12: =SUBTOTAL(109,SCHEINE!$D$8:$D$11) -> 6 | E12: =SUBTOTAL(109,SCHEINE!$E$8:$E$11) -> 3
B13: Kurse
B14: KURSTITEL | C14: KURS-NR. | D14: GEFORDERT | E14: SCHEINE | F14: ABGESCHLOSSEN | G14: PUNKTZAHL | H14: SEMESTER
B15: Kurs 1 | C15: Nummer | D15: Hauptfächer | E15: 4 | F15: Ja | G15: 4.0 | H15: 1. Semester
B16: Kurs 2 | C16: Nummer | D16: Nebenfächer | E16: 3 | F16: Nein | H16: 1. Semester
B17: Kurs 3 | C17: Nummer | D17: Wahlfächer | E17: 2 | F17: Ja | G17: 3.0 | H17: 1. Semester

Sheet BUDGET
B1: =Hochschule -> HOCHSCHULE
B2: BUDGET-TRACKER
B3: Mein Budget | C3: =Jahr -> JAHR
B4: AUSGEGEBENER PROZENTSATZ DER EINKÜNFTE
B5: =MONATLICHE_NETTOAUSGABEN/MONATLICHE_NETTOEINKÜNFTE -> 75%
B6: =B5 -> 0.7454545455
B7: MONATLICHE NETTOEINKÜNFTE | C7: MONATLICHE NETTOAUSGABEN | D7: SALDO
B8: =C10 -> 2,750 € | C8: ='MONATLICHE NETTOAUSGABEN'!C4+SEMESTERAUSGABEN!D4 -> 2,050 € | D8: =MONATLICHE_NETTOEINKÜNFTE-MONATLICHE_NETTOAUSGABEN -> 700 €
B9: Monate/Semester | C9: 4
B10: MONATLICHE EINKÜNFTE | C10: =SUM(MonatlicheEinkünfte[BETRAG]) -> 2,750 €
B11: POSTEN | C11: BETRAG
B12: Festeinkommen | C12: 1,500 €
B13: Finanzhilfen | C13: 500 €
B14: Kredite | C14: 500 €
B15: Sonstige Einkünfte | C15: 250 €

Sheet MONATLICHE NETTOAUSGABEN
B1: =Hochschule -> HOCHSCHULE
B2: BUDGET-TRACKER
B3: Monatliche Ausgaben | C3: =Jahr -> JAHR
B4: MONATLICHE AUSGABEN | C4: =SUM(MonatlicheAusgaben[BETRAG]) -> 1,675 €
B5: POSTEN | C5: BETRAG
B6: Miete | C6: 300 €
B7: Nebenkosten | C7: 50 €
B8: Handykosten | C8: 75 €
B9: Lebensmittel | C9: 250 €
B10: Kfz-Kosten | C10: 50 €
B11: Studienkredite | C11: 500 €
B12: Kreditkarten | C12: 275 €
B13: Versicherungen | C13: 125 €
B14: Unterhaltung | C14: 50 €
B15: Verschiedenes | C15: 0 €

Sheet SEMESTERAUSGABEN
B1: =Hochschule -> HOCHSCHULE
B2: BUDGET-TRACKER
B3: Semesterausgaben | C3: =Jahr -> JAHR
B4: SEMESTERAUSGABEN (Summe/pro Monat) | C4: =SUM(SemesterAusgaben[BETRAG]) -> 1,500 € | D4: =SUM(SemesterAusgaben[PRO MONAT]) -> 375 €
B5: POSTEN | C5: BETRAG | D5: PRO MONAT
B6: Unterrichtsgebühren | C6: 750 € | D6: =SemesterAusgaben[[#This Row],[BETRAG]]/Monate_im_Semester -> 188 €
B7: Laborgebühren | C7: 250 € | D7: =SemesterAusgaben[[#This Row],[BETRAG]]/Monate_im_Semester -> 63 €
B8: Bücher | C8: 500 € | D8: =SemesterAusgaben[[#This Row],[BETRAG]]/Monate_im_Semester -> 125 €
B9: Einzahlungen | C9: 0 € | D9: =SemesterAusgaben[[#This Row],[BETRAG]]/Monate_im_Semester -> 0 €
B10: Verkehrsmittel | C10: 0 € | D10: =SemesterAusgaben[[#This Row],[BETRAG]]/Monate_im_Semester -> 0 €
B11: Sonstige Gebühren | C11: 0 € | D11: =SemesterAusgaben[[#This Row],[BETRAG]]/Monate_im_Semester -> 0 €

Sheet BÜCHER
B1: =Hochschule -> HOCHSCHULE
B2: BÜCHER
B3: Buchliste
B4: TITEL | C4: AUTOR | D4: KURS | E4: WO KAUFEN? | F4: ISBN | G4: NOTIZEN
B5: Buchtitel | C5: Autor | D5: Kurs | E5: Quelle | F5: Nummer
B6: Buchtitel | C6: Autor | D6: Kurs | E6: Quelle | F6: Nummer
B7: Buchtitel | C7: Autor | D7: Kurs | E7: Quelle | F7: Nummer
